Cogmind - Beta 17 @@@ ROGUE MODE // 2026.08.06 @ 20:33:45 Player: MrFartsburg Result: Destroyed by G-47 Trooper with Particle Gun Performance ------------- Evolutions (2) 1000 Regions Visited (7) 1400 Robots Destroyed (19) 95 Value Destroyed (498) 498 Prototype IDs (0) 0 Alien Tech Used (0) 0 Bonus (500) 500 TOTAL SCORE: 3493 Bonus ------- Pacifist 200 Aligned with FarCom 300 Cogmind --------- Core Integrity 0/550 Matter 134/300 Energy 76/100 System Corruption 0% Temperature Danger (456) Movement Core (50) Location -8/Materials Parts ------- > --- POWER (2) -------- (None) > --- PROPULSION (3) --- (None) > --- UTILITY (3) ------ Trap Scanner > --- WEAPON (3) ------- (None) > --- INVENTORY (5) ---- Medium Laser Light Assault Rifle Peak State ------------ > --- POWER ------------ Light Nuclear Core > --- PROPULSION ------- Aluminum Leg Aluminum Leg Aluminum Leg > --- UTILITY ---------- Small Storage Unit Heavy Armor Plating > --- WEAPON ----------- Shock Rifle Particle Gun Spread Laser > --- INVENTORY -------- Light Treads Trap Scanner Insulated Plating Hardlight Generator Medium Laser Light Assault Rifle [Rating: 21] Favorites ----------- Power Ion Engine Engine Ion Engine Power Core Nuclear Core Propulsion Carbon-fiber Leg Treads Light Treads Leg Carbon-fiber Leg Utility Small Storage Unit Device Terrain Scanner Storage Small Storage Unit Protection Heavy Armor Plating Weapon Spread Laser Energy Gun Spread Laser Energy Cannon Heavy Particle Cannon Ballistic Gun Light Assault Rifle Special Weapon Welding Torch Build | -11 -10 -10 -9 -9 -9 -8 -8 ------- Run | Yrd Mat Min Mat Min Exi Min Mat Slots Evolved 4 | . . . 2 . . . 2 Power 1 | . . . 1 . . . . Propulsion 1 | . . . . . . . 1 Utility 1 | . . . 1 . . . . Weapon 1 | . . . . . . . 1 Parts Attached 30 | 7 1 . 7 1 . 2 12 Power 6 | 1 . . 2 . . 1 2 Engine 3 | 1 . . 1 . . . 1 Core 3 | . . . 1 . . 1 1 Reactor . | . . . . . . . . Propulsion 7 | 2 . . 2 . . . 3 Treads 1 | . . . . . . . 1 Leg 6 | 2 . . 2 . . . 2 Wheel . | . . . . . . . . Hover . | . . . . . . . . Flight . | . . . . . . . . Utility 7 | 1 1 . 1 . . . 4 Device 3 | . . . 1 . . . 2 Storage 2 | 1 1 . . . . . . Processor . | . . . . . . . . Hackware . | . . . . . . . . Protection 2 | . . . . . . . 2 Artifact . | . . . . . . . . Weapon 10 | 3 . . 2 1 . 1 3 Energy Gun 7 | 2 . . 2 1 . . 2 Energy Cannon 1 | . . . . . . . 1 Ballistic Gun 1 | 1 . . . . . . . Ballistic Cannon . | . . . . . . . . Launcher . | . . . . . . . . Special Weapon 1 | . . . . . . 1 . Impact Weapon . | . . . . . . . . Slashing Weapon . | . . . . . . . . Piercing Weapon . | . . . . . . . . Special Melee Weapon . | . . . . . . . . Unidentified Prototypes . | . . . . . . . . Parts Lost 24 | . . . 1 . . 9 14 Power 6 | . . . . . . 4 2 Propulsion 6 | . . . . . . 2 4 Utility 6 | . . . . . . 2 4 Weapon 6 | . . . 1 . . 1 4 Highest Loss Streak 13 | . . . 1 . . 5 13 To Critical Strikes . | . . . . . . . . Average Backups 5 | 1 2 3 5 6 6 5 5 Power . | . 1 1 . 1 1 . . Propulsion . | . . . . 1 1 . 1 Utility 1 | . . . . 1 1 1 2 Weapon 2 | . 1 1 2 2 2 3 2 Tool/Special . | . . . . . . . . Unused Backups . | . . . . . . . . Power . | . . . . . . . . Propulsion . | . . . . . . . . Utility . | . . . . . . . . Weapon . | . . . . . . . . Tool/Special . | . . . . . . . . Average Slot Usage (%) 88 | . 85 100 97 100 100 83 68 Engine 9 | . 14 14 16 11 11 10 . Core 8 | . . . 5 11 11 10 5 Leg 19 | . 28 28 22 22 22 14 19 Device 5 | . . . 8 11 11 3 . Storage 19 | . 14 28 22 22 22 22 9 Protection 1 | . . . . . . . 8 Energy Gun 16 | . 14 14 20 22 22 8 21 Ballistic Gun 3 | . 14 14 1 . . 6 2 Special Weapon 2 | . . . . . . 6 . Peak Build Rating 21 | 6 7 7 17 18 18 18 21 Average Rating 14 | 4 6 7 13 18 18 12 17 On Entrance 9 | . 6 7 7 16 18 18 5 Avg Prop Armor Cover (%) 7 | . . . . . . . 7 Naked Turns . | . . . . . . . . Heaviest Build 37 | 13 15 15 25 26 26 26 37 Greatest Support 30 | 20 20 20 30 30 30 30 30 Greatest Overweight (x) 4 | 4 . . 1 . . 2 2 Average Overweight (x) . | . . . . . . . 1 Largest Inventory Capacity 8 | 8 8 8 8 8 8 8 8 Average Capacity 7 | 7 8 8 8 8 8 8 7 Most Carried 8 | 2 4 3 8 7 7 7 7 Average Carried 6 | 1 2 3 6 7 7 6 5 Final Capacity 8 | 8 8 8 8 8 8 8 5 Final Carried 8 | 2 3 3 8 7 7 6 2 Class Distribution -------------------- 76% | Mutant 13% | Skirmisher 9% | Scavenger-Skirmisher Dominant Class ---------------- Mutant | -10/Materials Mutant | -10/Mines Mutant | -9/Materials Mutant | -9/Mines Mutant | -9/Exiles Mutant | -8/Mines Scavenger-Skirmisher | -8/Materials Resources | -11 -10 -10 -9 -9 -9 -8 -8 ----------- Run | Yrd Mat Min Mat Min Exi Min Mat Matter Collected 527 | 228 . . 16 30 . 155 98 Remotely . | . . . . . . . . Salvage Created 485 | . . . 68 30 . 111 276 Parts 34 | . . . 8 6 . 4 16 Haulers Intercepted . | . . . . . . . . Recyclers Shooed 1 | . . . 1 . . . . Parts Field Recycled . | . . . . . . . . Retrieved Matter . | . . . . . . . . Parts Self-Destructed . | . . . . . . . . Prevented . | . . . . . . . . Parts Restored . | . . . . . . . . Kills | -11 -10 -10 -9 -9 -9 -8 -8 ------- Run | Yrd Mat Min Mat Min Exi Min Mat Combat Hostiles Destroyed 18 | . . . 3 3 . 3 9 Guns 15 | . . . 3 3 . 2 7 Cannons 3 | . . . . . . 1 2 Classes Destroyed 5 | . . . 2 . . 1 2 Worker 1 | . . . . . . . 1 Swarmer 9 | . . . 2 3 . . 4 Grunt 7 | . . . 1 . . 2 4 Brawler 1 | . . . . . . 1 . Sentry 1 | . . . . . . . 1 Best Kill Streak 6 | . . . 3 3 . 2 6 Combat Bots Only 6 | . . . 3 3 . 2 6 Max Kills in Single Turn 2 | . . . 2 1 . 1 2 Gunslinging 1 | . . . 1 . . . 1 Exploded . | . . . . . . . . Melee . | . . . . . . . . Uniques/NPCs Destroyed . | . . . . . . . . Combat | -11 -10 -10 -9 -9 -9 -8 -8 -------- Run | Yrd Mat Min Mat Min Exi Min Mat Hostile Shots Fired 212 | . . . 19 6 . 76 111 Missed 37 | . . . 10 2 . 11 14 Hits 175 | . . . 9 4 . 65 97 Melee 2 | . . . . . . 2 . Projectile 173 | . . . 9 4 . 63 97 Critical Strikes 8 | . . . . . . 5 3 Damage Taken 2891 | . . . 97 30 . 1063 1701 Core 872 | . . . 23 . . 291 558 Absorbed by Shields 20 | . . . . . . . 20 Regen/Repaired (Parts) 73 | . . . . . . . 73 Core Remaining (%) 73 | 100 . 100 . . . 21 . Volleys Fired 44 | . . . 3 3 . 17 21 Largest 3 | . . . 2 2 . 2 3 Hottest 205 | . . . 96 121 . 121 205 Shots Fired 91 | . . . 6 6 . 31 48 Gun 80 | . . . 6 6 . 25 43 Cannon 5 | . . . . . . . 5 Launcher . | . . . . . . . . Special 6 | . . . . . . 6 . Kinetic 9 | . . . . . . 9 . Thermal 75 | . . . 3 6 . 22 44 Explosive . | . . . . . . . . Electromagnetic 7 | . . . 3 . . . 4 Robot Hit Streak 8 | . . . 3 3 . 7 8 Robot Miss Streak 5 | . . . 1 3 . 4 5 Penetration Max . | . . . . . . . . Secondary Targets 3 | . . . 1 1 . . 1 Max Gunslinging Chain 1 | . . . 1 1 . . 1 Shots Hit Robots 60 | . . . 5 4 . 19 32 Core Hits 70 | . . . 5 6 . 18 41 Critical Kills . | . . . . . . . . Critical Parts Destroyed . | . . . . . . . . Critical Strikes 2 | . . . 1 . . 1 . Burn 2 | . . . 1 . . 1 . Melee Attacks . | . . . . . . . . Impact . | . . . . . . . . Slashing . | . . . . . . . . Piercing . | . . . . . . . . Sneak Attacks . | . . . . . . . . Combat Hostiles . | . . . . . . . . Follow-up Attacks . | . . . . . . . . Damage Inflicted 959 | . 3 2 76 68 . 254 556 Guns 815 | . . . 66 40 . 231 478 Cannons 75 | . . . . . . . 75 Explosions . | . . . . . . . . Melee . | . . . . . . . . Ramming 58 | . 3 2 10 28 . 12 3 Kinetic 51 | . . . . . . 51 . Thermal 768 | . . . 42 40 . 191 495 Explosive . | . . . . . . . . Electromagnetic 82 | . . . 24 . . . 58 Impact . | . . . . . . . . Slashing . | . . . . . . . . Piercing . | . . . . . . . . Highest Corruption . | . . . . . . . . Average Corruption . | . . . . . . . . Corruption Purged . | . . . . . . . . Corruption Blocked . | . . . . . . . . Overload Shots . | . . . . . . . . Overflow Damage . | . . . . . . . . Projectiles . | . . . . . . . . Explosions . | . . . . . . . . Melee . | . . . . . . . . Knockbacks 1 | . . . . 1 . . . Impact 1 | . . . . 1 . . . Kinetic . | . . . . . . . . Secondary . | . . . . . . . . Self-Inflicted Damage . | . . . . . . . . Shots . | . . . . . . . . Rammed . | . . . . . . . . Targets Rammed 24 | . 1 1 2 10 . 6 4 Kicked 24 | . 1 1 2 10 . 6 4 Crushed . | . . . . . . . . Highest Temperature 952 | . . . 150 216 . 546 952 Average Temperature 304 | . . . 77 110 . 272 382 Received Heat Transfer 1465 | . . . 21 . . 657 787 Effects 55 | . . . . . . 12 43 Shutdowns 7 | . . . . . . 2 5 Energy Bleed 7 | . . . . . . . 7 Interference 7 | . . . . . . 2 5 Matter Decay 7 | . . . . . . 1 6 Short Circuit 2 | . . . . . . . 2 Damage (minor) 8 | . . . . . . 1 7 Damage (major) 14 | . . . . . . 6 8 Damage (core) 3 | . . . . . . . 3 Siege Activations . | . . . . . . . . Martial Activations . | . . . . . . . . Shielding Activations . | . . . . . . . . Robots Disrupted . | . . . . . . . . Combat Hostiles . | . . . . . . . . Robots Corrupted . | . . . . . . . . Combat Hostiles . | . . . . . . . . Parts Fried . | . . . . . . . . Impact Corruptions . | . . . . . . . . Robots Melted . | . . . . . . . . Combat Hostiles . | . . . . . . . . Parts Melted 2 | . . . . . . . 2 Heat Transferred 1503 | . . . 185 67 . 479 772 Parts Sabotaged . | . . . . . . . . Parts Stolen . | . . . . . . . . Parts Stripped . | . . . . . . . . Power Chain Reactions . | . . . . . . . . Alert | -11 -10 -10 -9 -9 -9 -8 -8 ------- Run | Yrd Mat Min Mat Min Exi Min Mat Maximum Alert Level . | . . . . . . . . Low Security (%) 100 | 100 100 100 100 100 . 100 100 Level 1 . | . . . . . . . . Level 2 . | . . . . . . . . Level 3 . | . . . . . . . . Level 4 . | . . . . . . . . Level 5 . | . . . . . . . . High Security . | . . . . . . . . Max Security . | . . . . . . . . Peak Influence 158 | . . . 75 71 . 30 158 Initial 21 | . . . . 21 . . . Average 9 | . . . 11 33 . 1 21 Influence Increases 482 | . . . 75 70 . 70 267 Destroy 0b10 Robot/C 360 | . . . 60 60 . 60 180 Destroy 0b10 Robot/NC 5 | . . . . . . . 5 Destroy Leader 60 | . . . . 10 . 10 40 Successful Hack 10 | . . . . . . . 10 Disable Machine 15 | . . . . . . . 15 Destroy Structure 2 | . . . . . . . 2 Lose Combat Pursuer 30 | . . . 15 . . . 15 Influence Decreases 457 | . . . 20 94 31 70 242 Entered New Map 65 | . . . . 34 31 . . Time Decay 222 | . . . 10 60 . 40 112 Lost Part 170 | . . . 10 . . 30 130 Squads Dispatched 6 | . . . 1 . . . 5 Investigation 3 | . . . . . . . 3 Extermination . | . . . . . . . . Reinforcement 3 | . . . 1 . . . 2 Assault . | . . . . . . . . Garrison . | . . . . . . . . Intercept . | . . . . . . . . Searches Triggered . | . . . . . . . . Construction Impeded . | . . . . . . . . Haulers Reinforced . | . . . . . . . . Active Scanning Responses . | . . . . . . . . Cargo Convoy Interrupts . | . . . . . . . . Stealth | -11 -10 -10 -9 -9 -9 -8 -8 --------- Run | Yrd Mat Min Mat Min Exi Min Mat Distress Signals 3 | . . . 2 . . 1 . Communications Jammed . | . . . . . . . . Distress Signals . | . . . . . . . . Times Spotted 40 | . 2 . 10 3 . 6 19 Peak Tracking Total 8 | . 2 . 6 3 . 3 8 Tactical Retreats 2 | . . . 1 . . . 1 Traps | -11 -10 -10 -9 -9 -9 -8 -8 ------- Run | Yrd Mat Min Mat Min Exi Min Mat Traps Triggered 1 | . . . . . . . 1 Indirectly . | . . . . . . . . Trap Hack Attempts . | . . . . . . . . Triggered . | . . . . . . . . Disarmed . | . . . . . . . . Reprogrammed . | . . . . . . . . Reused . | . . . . . . . . Traps Extracted . | . . . . . . . . Installed . | . . . . . . . . Triggered . | . . . . . . . . Machines | -11 -10 -10 -9 -9 -9 -8 -8 ---------- Run | Yrd Mat Min Mat Min Exi Min Mat Machines Disabled 1 | . . . . . . . 1 Max in Single Turn 1 | . . . . . . . 1 Machines Repaired . | . . . . . . . . Machines Dismantled . | . . . . . . . . Machines Sabotaged . | . . . . . . . . Overloaded Fab Kills . | . . . . . . . . Hacking | -11 -10 -10 -9 -9 -9 -8 -8 --------- Run | Yrd Mat Min Mat Min Exi Min Mat Machines Accessed 3 | . . . . . 1 . 2 Terminals 1 | . . . . . . . 1 Fabricators . | . . . . . . . . Repair Stations 1 | . . . . . . . 1 Recycling Units . | . . . . . . . . Scanalyzers . | . . . . . . . . Garrison Access . | . . . . . . . . Total Hacks 21 | . . . . . 7 . 14 Successful 17 | . . . . . 7 . 10 Failed 4 | . . . . . . . 4 Catastrophic . | . . . . . . . . Database Lockouts . | . . . . . . . . Manual . | . . . . . . . . Terminals 5 | . . . . . . . 5 Fabricators . | . . . . . . . . Repair Stations 9 | . . . . . . . 9 Recycling Units . | . . . . . . . . Scanalyzers . | . . . . . . . . Garrison Access . | . . . . . . . . Terminal Hacks 10 | . . . . . 7 . 3 Record 9 | . . . . . 7 . 2 Zone Layout 1 | . . . . . . . 1 Fabricator Hacks . | . . . . . . . . Repair Station Hacks 7 | . . . . . . . 7 Scan Component 5 | . . . . . . . 5 Repair 2 | . . . . . . . 2 Recycling Unit Hacks . | . . . . . . . . Scanalyzer . | . . . . . . . . Garrison Access Hacks . | . . . . . . . . Unauthorized Hacks . | . . . . . . . . Terminals . | . . . . . . . . Fabricators . | . . . . . . . . Repair Stations . | . . . . . . . . Recycling Units . | . . . . . . . . Scanalyzers . | . . . . . . . . Garrison Access . | . . . . . . . . Data Cores Recovered . | . . . . . . . . Used . | . . . . . . . . Hacking Detections 2 | . . . . . . . 2 Full Trace Events 2 | . . . . . . . 2 Feedback Events . | . . . . . . . . Feedback Blocked . | . . . . . . . . Robot Schematics Acquired . | . . . . . . . . Robots Built . | . . . . . . . . Authchips . | . . . . . . . . Time . | . . . . . . . . Total Robot Build Rating . | . . . . . . . . Part Schematics Acquired . | . . . . . . . . Parts Built . | . . . . . . . . Authchips . | . . . . . . . . Time . | . . . . . . . . Total Part Build Rating . | . . . . . . . . Part Studies Acquired . | . . . . . . . . Parts Repaired 2 | . . . . . . . 2 Time 64 | . . . . . . . 64 Parts Recycled . | . . . . . . . . Recycled Matter . | . . . . . . . . Retrieved Matter . | . . . . . . . . Retrieved Components . | . . . . . . . . Parts Scanalyzed . | . . . . . . . . Part Schematics Acquired . | . . . . . . . . Parts Damaged . | . . . . . . . . Bothacking | -11 -10 -10 -9 -9 -9 -8 -8 ------------ Run | Yrd Mat Min Mat Min Exi Min Mat Used RIF Installer . | . . . . . . . . Robots Hacked . | . . . . . . . . Non-combat . | . . . . . . . . Combat . | . . . . . . . . Robot Hacks Applied . | . . . . . . . . Relay Couplers Released . | . . . . . . . . Fabnet Peak Effective % . | . . . . . . . . Robots Rewired . | . . . . . . . . Allies Hacked . | . . . . . . . . Hacks Repelled . | . . . . . . . . Allies | -11 -10 -10 -9 -9 -9 -8 -8 -------- Run | Yrd Mat Min Mat Min Exi Min Mat Total Allies . | . . . . . . . . Largest Group . | . . . . . . . . Highest-Rated Group . | . . . . . . . . Highest-Rated Ally . | . . . . . . . . Total Orders . | . . . . . . . . Ally Attacks . | . . . . . . . . Total Damage . | . . . . . . . . Kills . | . . . . . . . . Allies Corrupted . | . . . . . . . . Allies Melted . | . . . . . . . . Intel | -11 -10 -10 -9 -9 -9 -8 -8 ------- Run | Yrd Mat Min Mat Min Exi Min Mat Active Infowar (turns) 1312 | . . . 136 123 795 255 3 Terrain 1309 | . . . 136 123 795 255 . Traps 3 | . . . . . . . 3 Robot Analysis Total . | . . . . . . . . Derelict Logs Recovered . | . . . . . . . . Drone Launches . | . . . . . . . . Drone Recoveries . | . . . . . . . . Exploration | -11 -10 -10 -9 -9 -9 -8 -8 ------------- Run | Yrd Mat Min Mat Min Exi Min Mat Turns Passed 2638 | 66 78 139 153 123 795 813 471 Spaces Moved 1621 | 49 61 112 87 85 661 396 170 Core 23 | 15 . . . . . 1 7 Treads 4 | . . . . . . . 4 Legs 1594 | 34 61 112 87 85 661 395 159 Wheels . | . . . . . . . . Hover . | . . . . . . . . Flight . | . . . . . . . . Fastest Speed 50 | 50 120 120 120 120 120 120 50 Average Speed 137 | 111 120 120 144 120 120 151 203 Slowest Speed 260 | 250 120 120 190 120 120 190 260 Overloaded Moves . | . . . . . . . . Propulsion Burnouts . | . . . . . . . . Robots Hopped . | . . . . . . . . Potential Cave-ins . | . . . . . . . . Cave-ins Triggered . | . . . . . . . . Exploration Rate (%) 31 | 3 12 20 17 19 82 83 16 Regions Visited 7 Branch Regions 4 Pre-discovered Areas . | . . . . . . . . Known Exits Taken . | . . . . . . . . Unknown Exits Taken 7 | 1 1 1 1 1 1 1 . Scrap Searched 1 | . . . . . . 1 . Spaces Dug . | . . . . . . . . Terrain Destroyed 2 | . . . . . . . 2 Melee . | . . . . . . . . Projectile 2 | . . . . . . . 2 AOE . | . . . . . . . . Terrain Rammed . | . . . . . . . . Walls Destroyed . | . . . . . . . . Machines Disabled . | . . . . . . . . Actions | -11 -10 -10 -9 -9 -9 -8 -8 --------- Run | Yrd Mat Min Mat Min Exi Min Mat Total 1925 | 57 65 116 107 98 663 573 246 Wait 181 | . 1 4 . . 2 146 28 Move 1615 | 48 60 111 86 84 660 396 170 Hop . | . . . . . . . . Pick Up 19 | 2 2 . 7 . . 2 6 Fast Attach 14 | 6 . . 1 . . 1 6 Attach 14 | . 1 . 1 1 . 3 8 Detach 1 | . . . . . . . 1 Swap 9 | 1 . . 5 . . 3 . Drop 4 | . . . 2 . . . 2 Fire 44 | . . . 3 3 . 17 21 Melee . | . . . . . . . . Ram . | . . . . . . . . Kick 23 | . 1 1 2 10 . 5 4 Crush . | . . . . . . . . Escape Stasis . | . . . . . . . . Rewire 1 | . . . . . 1 . . Trap . | . . . . . . . . Miscellaneous . | . . . . . . . . Route ------- -11/Scrapyard -10/Materials -10/Mines -9/Materials -9/Mines (discovered 2 exits: *Mat / *Exi) -9/Exiles -8/Mines -8/Materials History --------- Turn | Location | Event 4 | -11/Scrapyard | Discovered new exit (range 13) 67 | -11/Scrapyard | Entered Materials 90 | -10/Materials | Discovered new exit (range 16) 145 | -10/Materials | Entered Mines 254 | -10/Mines | Discovered new exit (range 8) 275 | -10/Mines | Assembled infested the area 280 | -10/Mines | Assisted by a Guerilla fighting off Assembled 284 | -10/Mines | Entered Materials 284 | -9/Materials | Evolved 2 slots: Power x1, Utility x1 322 | -9/Materials | Build established: Mutant 424 | -9/Materials | Discovered new exit (range 12) 437 | -9/Materials | Entered Mines 444 | -9/Mines | Discovered new exit (range 13) 554 | -9/Mines | Deemed a non-threat by the Exiles lab entrance 555 | -9/Mines | Discovered new exit (range 5) 560 | -9/Mines | Entered Exiles 593 | -9/Exiles | Discovered new exit (range 15) 643 | -9/Exiles | Met 8R-AWN 672 | -9/Exiles | Met EX-HEX 719 | -9/Exiles | Met EX-BIN 745 | -9/Exiles | Aligned with FarCom system 746 | -9/Exiles | Given EX-Vault access code 901 | -9/Exiles | Met EX-DEC 1047 | -9/Exiles | Visited The Gauntlet 1355 | -9/Exiles | Entered Mines 1661 | -8/Mines | Core integrity fell below 50% 1687 | -8/Mines | Lost 5 parts (2p2n1u) 2137 | -8/Mines | Discovered new exit (range 10) 2168 | -8/Mines | Entered Materials 2168 | -8/Materials | Evolved 2 slots: Propulsion x1, Weapon x1 2196 | -8/Materials | Lost 4 parts (2p1u1w) 2201 | -8/Materials | Repaired Particle Gun 2233 | -8/Materials | Repaired Spread Laser 2607 | -8/Materials | Core integrity fell below 50% 2623 | -8/Materials | Core integrity fell below 20% 2639 | -8/Materials | Destroyed by G-47 Trooper with Particle Gun Last Messages --------------- Overheating: Energy bleed (-7). Overheating: System interference. Trap Scanner temporarily disabled. Aluminum Leg destroyed. Broken Hvy. Particle Cannon destroyed. Triggered Alarm Trap. An alarm sounds. ALERT: Alarm triggered, dispatching investigation squad. Overheating: Sml. Storage Unit damaged (-30). Overheating: Trap Scanner damaged (-7). Broken Aluminum Leg destroyed. Overheating: Matter decay (-19). Overheating: Trap Scanner damaged (-8). Overheating: Sml. Storage Unit damaged (-16). Critical hit (Burn: +37). Overheating: Energy bleed (-19). Overheating: Energy bleed (-17). Lgt. Treads destroyed. Sml. Storage Unit destroyed. Map ----- +----------------------------------------------------+ | ?????????????????????? """ #??# % #????# | | ??????????????????????# """ #######%###########+# | | ??????????????????????# # T # | | ??????????????????????# """ # # | | ???????????????######## """ # # | | ???????????????# # """ # % # | | ???????????????# # + ######## # | | ???????????????# # "" # #??#####+# | | ???????????????# # T" # #??# #% | | ???????????????# *=! # "" # "%" #??# # | | ???????????????# [[% !# # """ #??# # | | ???????? #########%/"######### """ #### + | | ????? [%[ # | | ????? g m # | | ????? g # | | ????? ! ##############ggg###################+#### | | ??????????????????????# # #??????# | | ??????????????????????# # #??????# """ | | ??????????????????????# + ????????????#""""" | | ??????????????????????# # "???????????#""""" | | ??????????????????????# # ""??????????#""""" | | ??????????????????????# #? ??????????# """ | | ??????????????????????# #??#??????????# | | ??????????????????????# #?????????????# | | ??????????????????????# #?????????????########## | | ??????????????????????# @#??????????????????????? | | ??????????????????????# #??????????????????????? | | ??????????????????????#o #??????????????????????? | | ??????????????????????# #??????????????????????? | | ??????????????????????# #??????????????????????? | | ??????????????????????# #??????????????????????? | | ??????????????????????# #??????????????????????? | | ??????????????????????+ +??????????????????????? | | ??????????????????????# #??????????????????????? | | ??????????????????????# #??????????????????????? | | ??????????????????????# #??????????????????????? | | ?????????????????????? ???????????????????????? | | ?????????????????????? ???????????????????????? | | ?????????????????????? Y ???????????????????????? | | ?????????????????????? ???????????????????????? | | ??????????????????????? ???????????????????????? | | ?????????????????????????????????????????????????? | | ?????????????????????????????????????????????????? | | ?????????????????????????????????????????????????? | | ?????????????????????????????????????????????????? | | ?????????????????????????????????????????????????? | | ?????????????????????????????????????????????????? | | ?????????????????????????????????????????????????? | | ?????????????????????????????????????????????????? | | ?????????????????????????????????????????????????? | +----------------------------------------------------+ Best States ------------- Heat Dissipation 31 Energy Generation 19 Energy Capacity 400 Matter Stores 345 Matter Capacity 400 Sight Range 16 Terrain Scan Range 14 Terrain Scan Density 10 Armor Coverage 600 Resistance: EM 15 Evasion (%) 55 Item Schematics ----------------- None Robot Schematics ------------------ None Fabricated ------------ Nothing Repaired ---------- Spread Laser | 8% | -8/Materials Studied --------- None Alien Tech Used ----------------- None Achievements -------------- None Challenges ------------ None Game ------ Seed ZioniteEtherialDriveblaster Manual? 0 Play Time 00:27:45 Cumulative 27.6 hours Start 2026.08.06 @ 06:13:14 End 2026.08.06 @ 20:33:45 Sessions 3 Manual Loads 0 Difficulty Rogue Special Mode None Game No. 51 Rogue 51 Adventurer 0 Explorer 0 Win Type - Total 0 Types 0/0/0/0/0/0/0/0/0/0 Lore% 13 Gallery% 21 Achievement% 15 Wizard Run 0 Options --------- Layout 1 ASCII 0 Keyboard 0 Movement Numpad Keybinds 0 Fullscreen 1 Font 32/SmallcapsGlow Map View 50x35 Zoom Use 0% Tactical HUD 0 Map Filters NONE Filters NONE Steam 1 RUN: d9373c6d-98ff-4cb5-b262-22594c682596